[Event "German Bundesliga 2023-24"]
[Site "Germany"]
[Date "2024.02.25"]
[Round "11.28"]
[White "Mamedyarov, Shakhriyar"]
[Black "Laurent-Paoli, Pierre"]
[Result "1-0"]
[ECO "A14"]
[WhiteElo "2734"]
[BlackElo "2540"]
[Annotator "TA"]
[PlyCount "113"]
[EventDate "2023.10.20"]
[EventType "team-tourn"]
[EventCountry "GER"]
[SourceTitle "playchess.com"]
[Source "ChessBase"]
[SourceQuality "1"]
[TimeControl "40/6000+30:3000+30"]

{[%evp 17,113,7,33,22,22,30,35,0,38,35,29,28,25,35,45,37,72,65,61,60,77,79,85,48,45,37,46,10,29,28,19,15,11,16,19,10,11,12,7,0,20,11,55,52,95,93,148,146,161,137,131,131,176,144,123,46,34,48,39,38,41,43,143,112,101,83,102,92,232,223,276,250,528,528,528,528,528,528,528,528,5734,937,29972,29973,29974,29975,29975,29976,29975,29976,29976,29977,29977,29978,29979,29979,29981,29982]} 1. Nf3 {[%emt 0:00:03]} d5 {[%emt 0:01:42]} 2. b3 {[%emt 0:00:16]} Nf6 {[%emt 0:02:23]} 3. Bb2 {[%emt 0:01:00]} e6 {[%emt 0:00:33]} 4. c4 {[%emt 0:00:52]} b6 {[%emt 0:04:55]} 5. g3 {[%emt 0:04:20]} Bb7 {[%emt 0:00:47]} 6. Bg2 {[%emt 0:00:02]} Nbd7 {[%emt 0:02:54]} 7. O-O {[%emt 0:00:35]} Be7 {[%emt 0:04:04]} 8. cxd5 {[%emt 0:03:53]} exd5 {[%emt 0:00:10]} 9. Nd4 {[%emt 0:00:26]} O-O {[%emt 0:03:10]} 10. Nf5 {[%emt 0:00:05]} Re8 {[%emt 0:00:19]} 11. Nxe7+ {[%emt 0:00:30]} Qxe7 {[%emt 0:00:10]} 12. Nc3 {[%emt 0:00:40][%cal Bb1c3,Bc3d1,Bd1f2][%mdl 32] White is slightly better.} Rab8 {[%emt 0:18:22]} 13. d4 {[%emt 0:08:10]} Ne4 {[%emt 0:04:30]} 14. Qc2 {[%emt 0:03:12]} Ndf6 {[%emt 0:04:12]} 15. Rac1 {[%emt 0:05:52]} c6 {[%emt 0:02:45]} 16. Nd1 {[%emt 0:07:47]} Qe6 {[%emt 0:05:46]} 17. f3 {[%emt 0:04:27]} Nd6 {[%emt 0:01:23]} 18. Re1 {[%emt 0:00:23]} Rbd8 {[%emt 0:05:59]} 19. Nf2 {[%emt 0:02:48]} h5 {[%emt 0:11:06]} 20. e4 {[%emt 0:02:49]} dxe4 {[%emt 0:01:50]} 21. fxe4 {[%emt 0:00:11]} Ng4 {[%emt 0:03:05]} 22. h3 {[%emt 0:06:15]} Nxf2 {[%emt 0:00:23]} 23. Qxf2 {[%emt 0:00:02]} f5 {[%emt 0:05:59] [#]} 24. d5 $1 {[%emt 0:01:38]} cxd5 {[%emt 0:00:05]} 25. exd5 {[%emt 0:00:47]} Qf7 {[%emt 0:01:51]} 26. Rxe8+ {[%emt 0:20:06]} Nxe8 {[%emt 0:03:53]} 27. Qd2 $36 {[%emt 0:02:31][%mdl 2048] White has the initiative.} Rd7 {[%emt 0:02:59][%cal Rb7d5]} 28. Re1 {[%emt 0:08:52]} Nd6 {[%emt 0:05:52][%cal Od6e4]} 29. Rf1 {[%emt 0:01:44]} Qg6 {[%emt 0:02:16]} 30. Qf4 {[%emt 0:01:08]} Qf7 {[%emt 0:03:01]} 31. Qe5 {[%emt 0:02:15] Black must now prevent Ba3. White is more active.} Ba6 {[%emt 0:05:02]} ({Black should play} 31... Qf6) 32. Rf4 $16 {[%emt 0:04:04]} Bd3 {[%emt 0:01:17]} 33. g4 {[%emt 0:00:59]} hxg4 {[%emt 0:00:02]} 34. hxg4 {[%emt 0:00:01] Ba3 would now be deadly.} Be4 {[%emt 0:02:10]} 35. Bxe4 {[%emt 0:03:37]} Nxe4 {[%emt 0:00:04]} 36. Qb8+ {[%emt 0:03:19]} (36. Qxf5 Qxf5 37. gxf5 (37. Rxf5 g6 $11) 37... Nd6 $14) (36. gxf5 $2 Re7 37. Rxe4 (37. Qd4 $2 Ng3 $19) 37... Rxe5 38. Rxe5 Qf8 $19) ({Better is} 36. Rxf5 $16 Nf6 37. Rg5 (37. Qb8+ Qe8 $14)) 36... Qf8 $14 {[%emt 0:00:31]} ({But not} 36... Kh7 $2 37. Rxf5 (37. gxf5 Qe7 $11) 37... Qe7 38. Rh5+ Kg6 39. Qf4 $18) 37. Qxf8+ {[%emt 0:00:05]} Kxf8 {[%emt 0:00:02]} 38. Rxf5+ {[%emt 0:00:04][%mdl 4096] Endgame. KRB-KRN} Kg8 {[%emt 0:00:49]} 39. Kg2 {[%emt 0:04:16]} Nd6 {[%emt 0:00:02]} ({Black should try} 39... g6 $1 $14 40. Re5 Nf6) 40. Re5 {[%emt 0:02:09]} Nf7 {[%emt 0:01:58]} 41. Re8+ {[%emt 0:50:29]} Kh7 {[%emt 0:50:05]} 42. Kf3 {[%emt 0:00:09]} ({Much weaker is} 42. Rf8 Kg6 $11) 42... a5 {[%emt 0:00:00] Loses the game.} (42... Rxd5 $16 43. Re7 Kg6) 43. Rf8 $1 $18 {[%emt 0:00:00]} Ng5+ {[%emt 0:00:00] [#]} 44. Ke3 $1 {[%emt 0:00:00]} Rxd5 $2 {[%emt 0:00:00]} (44... Re7+ 45. Kd3 Rd7) 45. Rf5 {[%emt 0:00:00]} Rxf5 {[%emt 0:00:00]} 46. gxf5 {[%emt 0:00:00] KB-KN} g6 {[%emt 0:00:00]} 47. Kf4 {[%emt 0:00:00]} Nh3+ {[%emt 0:00:00]} 48. Ke5 {[%emt 0:00:00]} gxf5 {[%emt 0:00:00]} 49. Kxf5 {[%emt 0:00:00] Bd4 would kill now.} b5 {[%emt 0:00:00]} 50. Bd4 {[%emt 0:00:00] White mates.} a4 {[%emt 0:00:00]} 51. b4 {[%emt 0:00:00]} Kh6 {[%emt 0:00:00]} 52. Kg4 {[%emt 0:00:00]} Kg6 {[%emt 0:00:00]} 53. Kxh3 {[%emt 0:00:00]} Kf5 {[%emt 0:00:00] [#]} 54. Kg3 $1 {[%emt 0:00:00]} Ke4 {[%emt 0:00:00]} 55. Bc5 {[%emt 0:00:00]} a3 {[%emt 0:00:00]} 56. Kf2 {[%emt 0:00:00]} Kd3 {[%emt 0:00:00]} 57. Kf3 {[%emt 0:00:00] Weighted Error Value: White=0.08 (flawless) /Black=0.33.  Mistake:       	White=1     	Black=4      Inaccurate:     	White=4     	Black=7      OK:         	White=17    	Black=14     Best:        	White=3     	Black=2      Strong:       	White=2     	---} 1-0

[Event "German Bundesliga 2023-24"]
[Site "Germany"]
[Date "2024.02.25"]
[Round "11.29"]
[White "Grigoriants, Sergey"]
[Black "Maghsoodloo, Parham"]
[Result "0-1"]
[ECO "A22"]
[WhiteElo "2543"]
[BlackElo "2707"]
[Annotator "TA"]
[PlyCount "78"]
[EventDate "2023.10.20"]
[EventType "team-tourn"]
[EventCountry "GER"]
[SourceTitle "playchess.com"]
[Source "ChessBase"]
[SourceQuality "1"]
[TimeControl "40/6000+30:3000+30"]

{[%evp 10,78,13,14,23,6,35,21,25,19,28,11,20,9,12,0,0,-49,-29,-47,-43,-91,-82,-94,-86,-115,-81,-111,-112,-114,-114,-102,-82,-84,-74,-91,-86,-88,-91,-164,-145,-254,-252,-237,-150,-148,-147,-148,-160,-164,-164,-186,-195,-187,-174,-224,-212,-273,-276,-263,-267,-270,-247,-350,-364,-372,-343,-345,-341,-376,-375]} 1. c4 {[%emt 0:00:14]} e5 {[%emt 0:03:38]} 2. g3 {[%emt 0:05:28]} Nf6 {[%emt 0:00:07]} 3. Bg2 {[%emt 0:00:07]} d5 {[%emt 0:00:05]} 4. cxd5 {[%emt 0:00:07]} Nxd5 {[%emt 0:00:03]} 5. Nc3 {[%emt 0:02:51]} Nxc3 {[%emt 0:01:50]} 6. bxc3 {[%emt 0:00:13]} Nc6 {[%emt 0:01:08]} 7. Qc2 {[%emt 0:11:24]} Bd6 {[%emt 0:01:00]} 8. Nf3 {[%emt 0:02:40]} O-O {[%emt 0:00:28] The position is equal.} 9. O-O {[%emt 0:00:25]} h6 {[%emt 0:02:14]} 10. d4 {[%emt 0:07:01]} Re8 {[%emt 0:03:59]} 11. Bb2 {[%emt 0:17:55]} Qf6 {[%emt 0:18:55]} 12. e4 {[%emt 0:22:36]} Bg4 {[%emt 0:13:14]} 13. dxe5 {[%emt 0:05:22]} (13. Qd3 $11 {is superior.}) 13... Nxe5 $15 {[%emt 0:05:21]} 14. Nxe5 {[%emt 0:01:41]} Qxe5 {[%emt 0:00:13]} 15. f4 {[%emt 0:00:31]} (15. Rab1 $15) 15... Qh5 $17 {[%emt 0:12:43]} 16. Rae1 {[%emt 0:12:47]} Rad8 {[%emt 0:00:26] Black is more active.} 17. e5 {[%emt 0:01:16]} Bc5+ {[%emt 0:00:12]} 18. Kh1 {[%emt 0:00:01]} Bf5 {[%emt 0:08:11]} 19. Be4 {[%emt 0:01:32]} Bxe4+ {[%emt 0:00:38]} 20. Rxe4 {[%emt 0:00:05]} Qg6 $36 {[%emt 0:01:10][%mdl 2048] Black is really pushing.} 21. Bc1 {[%emt 0:02:46]} Qc6 {[%emt 0:04:54] [#] ...f5 would now be deadly.} 22. Qg2 {[%emt 0:00:26]} Rd3 {[%emt 0:00:05]} 23. f5 {[%emt 0:01:53]} Rxc3 {[%emt 0:03:05][%cal Oc5d6] Threatens to win with ...Bd6!} 24. e6 {[%emt 0:03:52]} fxe6 {[%emt 0:05:20]} 25. f6 {[%emt 0:01:31]} (25. Re2 $17 {is a better defense.}) 25... Rf8 $19 {[%emt 0:00:48]} 26. Bb2 {[%emt 0:07:19]} Re3 {[%emt 0:03:04]} 27. Rxe3 {[%emt 0:00:18] [#]} Qxg2+ {[%emt 0:00:05]} (27... Bxe3 28. Qxc6 bxc6 29. Re1 $16) 28. Kxg2 {[%emt 0:00:02]} Bxe3 $17 {[%emt 0:00:05][%mdl 4096] Endgame. KRB-KRB} 29. Re1 {[%emt 0:00:09]} Bc5 {[%emt 0:00:04]} (29... Rd8 30. Kh3 Bd4 (30... Rd2 31. Bc1 $11) 31. Bxd4 Rxd4 32. Rxe6) 30. Rxe6 {[%emt 0:00:27]} g6 {[%emt 0:01:22]} 31. Re5 {[%emt 0:01:20]} b6 {[%emt 0:04:12][%cal Of8d8]} 32. Rd5 {[%emt 0:00:20]} (32. Re6 $142) 32... Bd6 {[%emt 0:00:05]} 33. g4 {[%emt 0:00:21]} Re8 {[%emt 0:01:15]} 34. Kf3 {[%emt 0:00:07] Prevents Re2} Re1 {[%emt 0:01:33][%cal Og8f7]} ({Not} 34... Bxh2 35. Rd7 Re1 36. Rg7+ Kf8 37. Rxg6 $11) 35. h4 {[%emt 0:00:24]} Rf1+ {[%emt 0:10:03]} 36. Ke3 {[%emt 0:00:05]} (36. Kg2 $142 Rf4 37. Rd4) 36... Kf7 $19 {[%emt 0:00:58]} 37. g5 {[%emt 0:00:18]} hxg5 {[%emt 0:00:24]} 38. hxg5 {[%emt 0:00:01]} Ke6 {[%emt 0:00:05]} 39. Rd3 {[%emt 0:00:26]} Rg1 {[%emt 0:00:42] Weighted Error Value: White=0.23 (precise) /Black=0.09 (flawless) .  Mistake:       	White=6     	---        Inaccurate:     	White=1     	Black=2      OK:         	White=8     	Black=19     Best:        	White=2     	---} 0-1

[Event "German Bundesliga 2023-24"]
[Site "Germany"]
[Date "2024.02.25"]
[Round "11.30"]
[White "Anton Guijarro, David"]
[Black "Riehle, Marco"]
[Result "1/2-1/2"]
[ECO "A34"]
[WhiteElo "2653"]
[BlackElo "2368"]
[Annotator "ChessBase"]
[PlyCount "47"]
[EventDate "2023.10.20"]
[EventType "team-tourn"]
[EventCountry "GER"]
[SourceTitle "playchess.com"]
[Source "ChessBase"]
[SourceQuality "1"]
[TimeControl "40/6000+30:3000+30"]

1. c4 {[%emt 0:00:13]} c5 {[%emt 0:00:46]} 2. Nf3 {[%emt 0:00:32]} Nf6 {[%emt 0:00:21]} 3. Nc3 {[%emt 0:00:45]} d5 {[%emt 0:00:58]} 4. cxd5 {[%emt 0:00:17]} Nxd5 {[%emt 0:00:05]} 5. g3 {[%emt 0:01:14]} Nc6 {[%emt 0:00:45]} 6. Bg2 {[%emt 0:00:35]} Nc7 {[%emt 0:00:40]} 7. a3 {[%emt 0:01:04]} e5 {[%emt 0:02:18]} 8. b4 {[%emt 0:01:11]} f6 {[%emt 0:03:03]} 9. b5 {[%emt 0:01:54]} Nd4 {[%emt 0:02:42]} 10. Rb1 {[%emt 0:02:26]} Be7 {[%emt 0:07:12]} 11. e3 {[%emt 0:04:20]} Nf5 {[%emt 0:06:22]} 12. O-O {[%emt 0:04:54]} O-O {[%emt 0:01:32]} 13. Qe2 {[%emt 0:12:15]} b6 {[%emt 0:08:16]} 14. Rd1 {[%emt 0:12:56]} Re8 {[%emt 0:15:49]} 15. d4 {[%emt 0:17:25]} cxd4 {[%emt 0:06:13]} 16. exd4 {[%emt 0:01:04]} exd4 {[%emt 0:00:46]} 17. Nxd4 {[%emt 0:01:17]} Nxd4 {[%emt 0:02:31]} 18. Qc4+ {[%emt 0:00:34]} Be6 {[%emt 0:01:45]} 19. Qa4 {[%emt 0:14:37]} Bc5 {[%emt 0:09:19]} 20. Be3 {[%emt 0:00:13]} Bg4 {[%emt 0:07:33]} 21. Qc4+ {[%emt 0:10:41]} Be6 {[%emt 0:03:59]} 22. Qa4 {[%emt 0:00:10]} Bg4 {[%emt 0:00:08]} 23. Qc4+ {[%emt 0:10:50]} Be6 {[%emt 0:01:26]} 24. Qa4 {[%emt 0:00:17]} 1/2-1/2

[Event "German Bundesliga 2023-24"]
[Site "Germany"]
[Date "2024.02.25"]
[Round "11.31"]
[White "Georgiev, Kiril"]
[Black "Kryvoruchko, Yuriy"]
[Result "1/2-1/2"]
[ECO "B30"]
[WhiteElo "2548"]
[BlackElo "2656"]
[Annotator "TA"]
[PlyCount "83"]
[EventDate "2023.10.20"]
[EventType "team-tourn"]
[EventCountry "GER"]
[SourceTitle "playchess.com"]
[Source "ChessBase"]
[SourceQuality "1"]
[TimeControl "40/6000+30:3000+30"]

{[%evp 17,83,22,26,2,8,0,0,1,-4,-1,6,0,0,0,0,8,23,10,34,38,20,23,30,19,17,22,20,30,23,21,20,29,24,30,28,12,13,14,13,11,14,15,20,7,5,6,87,13,13,4,6,3,9,0,0,0,0,0,0,0,0,0,0,0,0,0,4,4]} 1. e4 {[%emt 0:00:15]} c5 {[%emt 0:00:20]} 2. Nf3 {[%emt 0:00:23]} Nc6 {[%emt 0:00:11]} 3. Bb5 {[%emt 0:00:33]} e6 {[%emt 0:00:26]} 4. O-O {[%emt 0:00:20]} Nge7 {[%emt 0:00:05]} 5. Re1 {[%emt 0:01:20]} a6 {[%emt 0:01:45]} 6. Bf1 {[%emt 0:00:11]} Ng6 {[%emt 0:00:08]} 7. c3 {[%emt 0:01:19][%cal Bc2c3,Bc3d4][%mdl 32]} Be7 {[%emt 0:00:05]} 8. d4 {[%emt 0:00:54]} cxd4 {[%emt 0:00:03]} 9. cxd4 {[%emt 0:00:18]} d5 {[%emt 0:00:07]} 10. Nc3 {[%emt 0:03:48]} dxe4 {[%emt 0:05:28]} 11. Rxe4 {[%emt 0:00:16]} O-O {[%emt 0:02:44]} 12. d5 {[%emt 0:02:15]} Nb4 {[%emt 0:22:05]} 13. Rd4 {[%emt 0:06:21] Black must now prevent d6.} Nxd5 {[%emt 0:07:31]} 14. Nxd5 {[%emt 0:00:23]} exd5 {[%emt 0:00:02]} 15. Rxd5 {[%emt 0:00:13]} Qb6 {[%emt 0:04:15]} 16. b3 {[%emt 0:10:54]} Be6 {[%emt 0:08:36]} 17. Be3 {[%emt 0:00:32]} Qc7 {[%emt 0:02:19]} 18. Rc1 {[%emt 0:01:38]} Qb8 {[%emt 0:05:04][%cal Oe7a3]} 19. Rd2 {[%emt 0:01:43]} Ba3 {[%emt 0:14:00]} 20. Rcc2 {[%emt 0:00:31]} Bf5 {[%emt 0:00:17]} 21. Bd3 {[%emt 0:01:32]} Bxd3 {[%emt 0:00:15]} 22. Rxd3 {[%emt 0:00:10]} Rd8 {[%emt 0:02:07]} 23. g3 {[%emt 0:03:16]} Rxd3 {[%emt 0:12:21]} 24. Qxd3 {[%emt 0:01:46]} Qe8 {[%emt 0:00:21] Prevents Qe4.} 25. Qd5 {[%emt 0:08:46]} Rc8 {[%emt 0:02:20]} 26. Rxc8 {[%emt 0:01:15]} Qxc8 {[%emt 0:00:03]} 27. Ng5 {[%emt 0:00:14]} Qc7 {[%emt 0:02:12] [#]} 28. Bb6 $1 {[%emt 0:06:34]} Qe7 {[%emt 0:08:00]} (28... Qxb6 $2 {perishes.} 29. Qxf7+ Kh8 30. Ne6 $18) 29. Ne4 {[%emt 0:05:15]} Nf8 {[%emt 0:00:02]} 30. Bc5 {[%emt 0:00:36]} Bxc5 {[%emt 0:00:02]} 31. Nxc5 $11 {[%emt 0:00:09][%mdl 4096] Endgame. KQN-KQN} Qe1+ {[%emt 0:06:06]} 32. Kg2 {[%emt 0:00:36] White is more active.} Qa5 $1 {[%emt 0:00:06] [#] The position is equal.} 33. b4 $1 {[%emt 0:05:42]} Qxb4 {[%emt 0:00:02]} 34. Nxb7 {[%emt 0:00:12]} Qa4 {[%emt 0:04:01]} 35. Nc5 {[%emt 0:04:56]} (35. Nd6 $5 Qd7 $8 36. h4 $11) 35... Qb5 {[%emt 0:01:17]} 36. a4 {[%emt 0:04:06]} Qb4 {[%emt 0:00:02]} 37. h4 {[%emt 0:02:41]} (37. Nxa6 Qxa4 38. Nc7 h6) 37... h6 {[%emt 0:00:06]} 38. Qc6 {[%emt 0:03:18]} Qc4 {[%emt 0:00:22]} 39. a5 {[%emt 0:01:18]} h5 {[%emt 0:01:29]} 40. Qd6 {[%emt 0:07:20]} Ne6 {[%emt 0:03:09]} 41. Nxe6 {[%emt 0:54:21] White wants to mate with Qf8+.} ({Don't play} 41. Qxa6 Qxc5 42. Qa8+ Kh7 43. Qe4+ g6 $17) 41... fxe6 {[%emt 0:04:19]} 42. Qd8+ {[%emt 0:00:00] Weighted Error Value: White=0.03 (flawless) /Black=0.02 (flawless) .  Inaccurate:     	White=1     	---        OK:         	White=11    	Black=22     Best:        	White=1     	---        Strong:       	---       	Black=1} 1/2-1/2

[Event "German Bundesliga 2023-24"]
[Site "Germany"]
[Date "2024.02.25"]
[Round "11.32"]
[White "Amin, Bassem"]
[Black "Lai, Hing Ting"]
[Result "1-0"]
[ECO "B12"]
[WhiteElo "2680"]
[BlackElo "2464"]
[Annotator "TA"]
[PlyCount "57"]
[EventDate "2023.10.20"]
[EventType "team-tourn"]
[EventCountry "GER"]
[SourceTitle "playchess.com"]
[Source "ChessBase"]
[SourceQuality "1"]
[TimeControl "40/6000+30:3000+30"]

{[%evp 12,57,11,7,9,0,0,0,0,0,0,-7,-3,-10,-10,-9,-2,0,0,0,17,9,42,31,31,34,39,33,75,83,70,73,83,17,27,0,143,129,174,159,425,384,522,468,1042,1018,979,982]} 1. e4 {[%emt 0:00:41]} c6 {[%emt 0:00:07]} 2. d4 {[%emt 0:00:22]} d5 {[%emt 0:00:07]} 3. e5 {[%emt 0:00:20]} Bf5 {[%emt 0:00:13]} 4. h4 {[%emt 0:00:07]} h5 {[%emt 0:00:13]} 5. Bd3 {[%emt 0:00:46]} Bxd3 {[%emt 0:00:12]} 6. Qxd3 {[%emt 0:00:06]} e6 {[%emt 0:00:08]} 7. Nf3 {[%emt 0:00:25]} Qa5+ {[%emt 0:02:14]} 8. Nbd2 {[%emt 0:00:21]} Qa6 {[%emt 0:00:47]} 9. c4 {[%emt 0:00:16]} Ne7 {[%emt 0:00:32] The position is equal.} 10. O-O {[%emt 0:01:01]} Nf5 {[%emt 0:00:31]} 11. Rd1 {[%emt 0:07:45]} Be7 {[%emt 0:05:29]} 12. g3 {[%emt 0:00:35]} Nd7 {[%emt 0:01:09]} 13. Qc2 {[%emt 0:11:18]} O-O {[%emt 0:05:07]} 14. b3 {[%emt 0:18:21]} Rfd8 {[%emt 0:21:55]} 15. a4 {[%emt 0:06:24]} b6 {[%emt 0:03:03]} 16. Nf1 {[%emt 0:09:34]} Qb7 {[%emt 0:04:00]} 17. cxd5 {[%emt 0:06:20]} cxd5 {[%emt 0:00:45]} 18. Ne3 {[%emt 0:00:36]} Nxe3 {[%emt 0:07:12]} 19. Bxe3 {[%emt 0:00:12]} Rac8 {[%emt 0:00:58]} 20. Qe2 {[%emt 0:06:09]} g6 {[%emt 0:07:02]} 21. Ng5 {[%emt 0:07:54]} Kg7 {[%emt 0:03:11]} 22. g4 $40 {[%emt 0:01:51][%mdl 128] Black needs to defend precisely.} (22. Qf3 $16 Rf8 23. Rd3) 22... Rh8 $11 {[%emt 0:03:55]} 23. Rac1 {[%emt 0:00:13]} Rcf8 {[%emt 0:01:36] [#]} (23... Rxc1 $1 $11 24. Rxc1 hxg4) 24. Rc3 $1 $16 {[%emt 0:00:44] White is much more active.} hxg4 {[%emt 0:18:38]} 25. Qxg4 {[%emt 0:00:43]} Ba3 $2 {[%emt 0:12:10] Against Rdc1. A mistake that costs the game.} (25... Rc8 $16 26. Rxc8 Qxc8) 26. Bd2 {[%emt 0:02:16]} Be7 {[%emt 0:02:12]} 27. Rdc1 {[%emt 0:07:41] White is clearly winning.} Rc8 {[%emt 0:00:35] [#] Wards off Rc7} (27... Bxg5 $142 28. Bxg5 Rc8) 28. Nxe6+ $1 $18 {[%emt 0:08:09][%mdl 512]} fxe6 {[%emt 0:01:31] [#]} 29. h5 $1 {[%emt 0:00:07] Weighted Error Value: White=0.15 (very precise) /Black=0.49.  Loses game:     	---       	Black=1      Mistake:       	White=1     	Black=2      Inaccurate:     	White=1     	Black=4      OK:         	White=5     	Black=4      Best:        	---       	Black=1      Brilliant:      	White=1     	---} ({Not} 29. Qxe6 Bxh4 30. Rc6 (30. Rxc8 Rxc8 31. Rxc8 Qxc8 $11) 30... Rxc6 31. Rxc6 Nf8 32. Qxd5 Qf7 33. Qxf7+ Kxf7 $11) 1-0

[Event "German Bundesliga 2023-24"]
[Site "Germany"]
[Date "2024.02.25"]
[Round "11.33"]
[White "Gledura, Benjamin"]
[Black "Navara, David"]
[Result "1/2-1/2"]
[ECO "C50"]
[WhiteElo "2633"]
[BlackElo "2679"]
[Annotator "TA"]
[PlyCount "41"]
[EventDate "2023.10.20"]
[EventType "team-tourn"]
[EventCountry "GER"]
[SourceTitle "playchess.com"]
[Source "ChessBase"]
[SourceQuality "1"]
[TimeControl "40/6000+30:3000+30"]

{[%evp 9,41,12,17,10,13,11,18,26,18,8,14,8,14,23,17,10,23,25,27,-5,17,0,28,0,0,0,0,14,9,23,10,22,22,6]} 1. e4 {[%emt 0:00:04]} e5 {[%emt 0:01:58]} 2. Nf3 {[%emt 0:00:14]} Nc6 {[%emt 0:00:08]} 3. Bc4 {[%emt 0:00:34]} Bc5 {[%emt 0:00:11]} 4. d3 {[%emt 0:00:18]} Nf6 {[%emt 0:00:09]} 5. a4 {[%emt 0:00:21]} h6 {[%emt 0:01:17]} 6. O-O {[%emt 0:02:02]} d6 {[%emt 0:02:17]} 7. a5 {[%emt 0:01:09]} a6 {[%emt 0:00:30]} 8. c3 {[%emt 0:01:01]} O-O {[%emt 0:00:46]} 9. Be3 {[%emt 0:00:27]} Bxe3 {[%emt 0:00:37]} 10. fxe3 {[%emt 0:00:06]} Be6 {[%emt 0:01:59]} 11. Bxe6 {[%emt 0:04:11]} fxe6 {[%emt 0:00:10]} 12. Nbd2 {[%emt 0:00:42]} d5 {[%emt 0:03:49]} 13. Qb3 {[%emt 0:08:11]} Rb8 {[%emt 0:03:19]} 14. d4 {[%emt 0:22:13]} Kh8 {[%emt 0:05:11]} 15. Qc2 {[%emt 0:08:46]} Qd6 {[%emt 0:12:14]} 16. b4 {[%emt 0:04:01]} exd4 {[%emt 0:09:00]} 17. exd4 {[%emt 0:00:20] [#] Hoping for e5.} e5 {[%emt 0:00:39]} 18. exd5 {[%emt 0:07:03]} Qxd5 {[%emt 0:00:36]} 19. dxe5 {[%emt 0:00:57]} Nxe5 {[%emt 0:00:43]} 20. Nxe5 {[%emt 0:01:06]} Qxe5 {[%emt 0:00:07]} 21. Rae1 {[%emt 0:00:19] A rather calm draw.   Weighted Error Value: White=0.07 (flawless) /Black=0.07 (flawless) .  Inaccurate:     	White=1     	Black=1      OK:         	White=7     	Black=2      Best:        	---       	Black=1} 1/2-1/2